bitfinex/quotes_ETHUSD_20240828
["timestamp","ask_amount","ask_price","bid_price","bid_amount"]
[1724882017220,7.45,2543.7,2543.3,3.93179]
[1724882017623,7.45,2543.7,2543.4,3.93172]
[1724882019416,26.13735,2544.2,2543.6,3.93132]
[1724882019593,13.79735,2544.2,2543.6,3.93132]
[1724882019791,13.79735,2544.2,2543.7,3.93127]
[1724882020090,13.79735,2544.2,2543.6,3.93132]
[1724882020290,13.79735,2544.2,2543.7,3.9312]
[1724882020599,15.570114,2544.2,2543.7,3.9312]
[1724882024522,6.34735,2544.2,2543.7,3.9312]
[1724882030664,6.26295,2544.1,2543.6,3.93132]
[1724882030816,3.93055,2544.2,2543.6,7.86267]
[1724882031519,3.93055,2544.2,2543.6,7.9412899]
[1724882031962,7.86113,2544.2,2543.6,7.9412899]
[1724882032460,2.3322,2544.3,2543.8,3.93109]
[1724882032627,6.26265,2544.3,2543.8,3.93109]
[1724882047741,3.93052,2544.2,2543.8,3.93109]
[1724882048637,3.93052,2544.2,2543.6,4.96297899]
[1724882048638,3.93052,2544.2,2543.7,3.93126]
[1724882051235,2.3322,2544.3,2543.9,3.93095]
[1724882051449,7.45,2544.4,2544.0,3.93076]
[1724882052887,11.38019,2544.4,2544.0,3.93076]
[1724882054184,3.93019,2544.4,2544.0,3.93076]
[1724882055357,3.93019,2544.4,2543.7,3.93116]
[1724882055553,3.93019,2544.4,2543.8,0.639886]
[1724882056484,3.93019,2544.4,2543.9,3.93093]
[1724882058787,2.3198,2544.3,2543.9,3.93093]
[1724882059862,6.25016,2544.3,2543.8,0.639886]
[1724882060381,3.93036,2544.3,2543.8,0.639886]
[1724882060998,3.93036,2544.3,2543.8,4.570966]
[1724882062697,7.86053,2544.4,2543.9,7.2710516]
[1724882062859,3.93097,2543.9,2543.4,3.93173]
[1724882063200,3.9314,2543.7,2543.2,6.42186]
[1724882063382,3.93114,2543.8,2543.3,2.35784516]
[1724882063700,3.93138,2543.7,2543.3,1.74202865]
[1724882064181,3.93137,2543.7,2543.3,1.74202865]
[1724882064389,7.86279,2543.7,2543.3,1.74202865]
[1724882064696,3.93137,2543.7,2543.3,1.74202865]
[1724882065102,7.86275,2543.7,2543.3,1.74202865]
[1724882065464,3.93137,2543.7,2543.3,1.74202865]
[1724882065682,3.93137,2543.7,2543.2,3.93203]
[1724882066072,3.93137,2543.7,2543.3,2.4009]
[1724882066475,7.86274,2543.7,2543.3,2.4009]
[1724882066688,3.93137,2543.7,2543.3,2.4009]
[1724882066886,3.93137,2543.7,2543.2,3.93197]
[1724882067088,3.93137,2543.7,2543.2,4.718391]
[1724882068122,3.93137,2543.7,2543.2,8.650371]
[1724882068316,3.93137,2543.7,2543.2,4.718391]
[1724882068518,15.31217,2543.9,2543.4,3.93171]
[1724882069585,11.38108,2543.9,2543.4,3.93171]
[1724882071591,15.31215,2543.9,2543.4,3.93171]
[1724882071987,7.86215,2543.9,2543.4,3.93171]
[1724882073992,3.93107,2543.9,2543.4,3.93171]
[1724882074902,3.93105,2543.9,2543.4,3.93171]
[1724882075742,7.86211,2543.9,2543.4,3.93171]
[1724882075960,3.93105,2543.9,2543.4,3.93171]
[1724882076240,7.86212,2543.9,2543.4,3.93171]
[1724882076447,3.93152,2543.6,2543.1,6.33308]
[1724882076737,3.93162,2543.5,2543.1,2.4009]
[1724882077322,3.93162,2543.5,2542.9,3.93236]
[1724882077323,3.93183,2543.4,2542.9,6.26146]
[1724882077917,3.93162,2543.5,2542.9,6.26146]
[1724882078117,4.948399,2543.5,2542.9,3.93236]
[1724882078314,4.948399,2543.5,2542.8,3.93256]
[1724882079716,4.948399,2543.5,2542.9,2.2578]
[1724882079913,4.948399,2543.5,2543.0,3.93235]
[1724882080455,0.7253199,2543.4,2543.0,3.93235]
[1724882082365,4.948399,2543.5,2543.0,3.93235]
[1724882083251,8.880089,2543.5,2543.0,3.93235]
[1724882083569,4.948399,2543.5,2543.0,3.93235]
[1724882083865,8.880069,2543.5,2543.0,3.93235]
[1724882084460,4.948399,2543.5,2543.0,3.93235]
[1724882085860,3.93176,2543.4,2542.9,3.93248]
[1724882086657,2.2562,2543.3,2542.9,3.93248]
[1724882087159,2.2562,2543.3,2542.8,3.93266]
[1724882087160,6.18812,2543.3,2542.8,3.93266]
[1724882090991,3.93192,2543.3,2542.9,2.3291]
[1724882092955,3.93192,2543.3,2542.9,6.26161]
[1724882093156,3.93192,2543.3,2542.9,7.281053]
[1724882095395,6.39882,2543.3,2542.9,3.93251]
[1724882097103,3.93245,2543.0,2542.4,6.18697]
[1724882097394,3.93269,2542.8,2542.2,6.1872]
[1724882097596,3.93269,2542.8,2542.3,4.54949324]
[1724882097800,3.93269,2542.8,2542.3,3.93343]
[1724882100702,3.93269,2542.8,2542.4,3.93329]
[1724882101075,3.93292,2542.7,2542.2,6.1872]
[1724882101489,3.88292,2542.7,2542.2,7.33851177]
[1724882103566,2.4648,2542.6,2542.2,5.08481177]
[1724882103766,6.39779,2542.6,2542.2,3.9335]
[1724882104376,2.4648,2542.6,2542.2,3.9335]
[1724882107002,6.39778,2542.6,2542.2,3.9335]
[1724882107179,3.93321,2542.5,2542.0,3.93379]
[1724882107819,6.28273,2542.2,2541.6,4.92014288]
[1724882108080,3.93414,2541.9,2541.4,3.93475]
[1724882108186,3.93414,2541.9,2541.4,5.27250493]
[1724882109382,3.93414,2541.9,2541.4,9.20725493]
[1724882109584,3.93414,2541.9,2541.4,5.27250493]
[1724882109805,3.93414,2541.9,2541.4,3.93475]
[1724882110616,2.4888,2541.8,2541.4,7.8695]
[1724882110918,2.4888,2541.8,2541.4,3.93475]
[1724882111505,6.4231,2541.8,2541.2,6.39745]
[1724882111813,6.4231,2541.8,2541.2,6.39744]
[1724882112000,6.4231,2541.8,2541.2,7.86993177]
[1724882112422,3.93438,2541.7,2541.2,3.93504]
[1724882113327,3.93469,2541.5,2541.0,3.93535]
[1724882113631,6.42349,2541.5,2541.0,3.93535]
[1724882115010,10.35827,2541.5,2541.0,3.93535]
[1724882115330,3.93483,2541.4,2541.0,3.93535]
[1724882115490,3.93509,2541.3,2540.8,3.93564]
[1724882116749,3.93517,2541.2,2540.8,3.93564]
[1724882116902,2.3487,2541.1,2540.8,3.93564]
[1724882117099,2.3487,2541.1,2540.7,3.93592]
[1724882119744,3.93517,2541.2,2540.8,6.34206]
[1724882120337,3.93517,2541.2,2540.8,3.93576]
[1724882124015,2.2933,2541.7,2541.2,3.93501]
[1724882124351,2.2933,2541.7,2541.4,3.93482]
[1724882124532,3.0,2541.8,2541.4,3.93482]
[1724882125246,3.0,2541.8,2541.2,3.935]
[1724882125247,6.93425,2541.8,2541.2,3.935]
[1724882125446,6.93425,2541.8,2541.3,3.93497]
[1724882125639,1.33569957,2541.7,2541.3,3.93497]
[1724882126439,3.0,2541.8,2541.4,3.93474]
[1724882126838,3.0,2541.8,2541.5,3.93466]
[1724882130882,3.065816,2541.9,2541.5,3.9346]
[1724882132377,2.2736,2541.8,2541.5,3.9346]
[1724882134282,2.2736,2541.8,2540.0,0.82248799]
[1724882134283,2.2736,2541.2,2540.5,6.93612]
[1724882134593,2.2736,2541.2,2540.5,3.93612]
[1724882134775,6.20876,2541.2,2540.5,3.93612]
[1724882135287,3.93532,2541.1,2540.6,3.93606]
[1724882135443,4.949721,2541.1,2540.6,3.93606]
[1724882135890,2.2736,2540.9,2540.5,3.93612]
[1724882136982,6.20922,2540.9,2540.4,3.93638]
[1724882137197,3.93599,2540.7,2540.1,3.93675]
[1724882137554,3.93599,2540.7,2540.1,7.87352]
[1724882137878,3.93599,2540.7,2540.2,3.93669]
[1724882138082,7.87201,2540.7,2540.1,7.87352]
[1724882138371,7.872,2540.7,2540.2,3.93669]
[1724882138688,3.93599,2540.7,2540.2,3.93669]
[1724882139183,7.872,2540.7,2540.1,3.93675]
[1724882139401,5.0325904,2540.7,2540.1,7.87348]
[1724882139751,8.9686204,2540.7,2540.1,3.93673]
[1724882140064,2.455,2540.6,2540.1,3.93673]
[1724882140381,6.39108,2540.6,2540.1,3.93673]
[1724882140817,6.39108,2540.6,2540.1,7.87349]
[1724882141092,3.93628,2540.5,2540.0,3.93692]
[1724882141299,3.93628,2540.5,2539.9,7.87415]
[1724882141453,3.93628,2540.5,2539.9,3.93707]
[1724882141659,3.93641,2540.4,2539.7,7.8748]
[1724882141854,3.93641,2540.4,2539.7,8.65470977]
[1724882142469,3.93641,2540.4,2539.8,3.9373]
[1724882142807,3.93641,2540.4,2539.8,5.04970398]
[1724882143662,2.2736,2540.3,2539.8,5.04970398]
[1724882144957,6.21015,2540.3,2539.8,1.11240398]
[1724882145205,10.14677,2540.3,2539.7,0.77990977]
[1724882145501,3.93693,2540.1,2539.5,3.93777]
[1724882145751,3.93693,2540.1,2539.4,5.32993773]
[1724882145901,3.93693,2540.1,2539.5,0.53299377]
[1724882146399,3.93693,2540.1,2539.5,4.47076377]
[1724882148360,2.3114,2540.2,2539.5,4.47076377]
[1724882148361,6.24814,2540.2,2539.5,4.47076377]
[1724882148682,6.24814,2540.2,2539.5,3.93777]
[1724882148865,6.24814,2540.2,2539.6,3.93759]
[1724882149201,2.3114,2540.2,2539.6,3.93754]
[1724882149515,2.3114,2540.2,2539.6,7.87508]
[1724882149718,0.624795,2540.1,2539.4,3.93783]
[1724882149875,2.4426,2540.0,2539.4,3.93783]
[1724882151111,2.4769,2539.8,2539.3,3.93805]
[1724882151425,2.4769,2539.0,2538.4,3.93937]
[1724882151720,2.4769,2539.0,2538.6,3.93915]
[1724882152317,3.93882,2538.9,2538.3,3.93964]
[1724882152626,6.41554,2539.0,2538.3,0.45563644]
[1724882152627,2.4769,2539.0,2538.3,0.45563644]
[1724882152823,2.4769,2539.0,2538.4,3.93942]
[1724882152982,3.93835,2539.2,2538.4,6.32762]
[1724882153180,2.4769,2539.3,2538.4,6.32762]
[1724882153181,2.4769,2539.3,2538.8,3.93882]
[1724882153400,2.4769,2539.3,2538.8,3.93878]
[1724882154093,2.4769,2539.3,2538.8,7.87754]
[1724882154432,2.4769,2539.3,2538.8,3.93877]
[1724882154595,2.4769,2539.3,2539.0,3.93855]
[1724882154918,2.4769,2539.3,2538.2,3.35360626]
[1724882154919,0.24769,2539.2,2538.5,3.93931]
[1724882155120,4.18604,2539.2,2538.5,3.93931]
[1724882155325,4.18604,2539.2,2538.6,3.93908]
[1724882155522,0.666294,2539.1,2538.7,3.93899]
[1724882155817,0.24769,2539.2,2538.7,3.93899]
[1724882156031,0.24769,2539.2,2538.7,3.93893]
[1724882156817,0.24769,2539.2,2538.7,3.9389]
[1724882156988,0.24769,2539.2,2538.8,3.93884]
[1724882158308,0.24769,2539.2,2538.9,3.9387]
[1724882158630,2.4769,2539.3,2538.9,3.9387]
[1724882159126,2.4769,2539.3,2538.9,3.93862]
[1724882159529,2.4769,2539.3,2539.0,3.93853]
[1724882160529,2.4769,2539.3,2539.1,3.93839]
[1724882161031,2.4769,2539.3,2539.1,3.93832]
[1724882161212,12.7962,2539.5,2539.1,3.93831]
[1724882161529,1.045,2539.4,2539.2,3.93822]
[1724882164535,1.045,2539.4,2539.2,3.93814]
[1724882165741,1.045,2539.4,2539.2,7.87628]
[1724882166051,2.3462,2539.5,2539.2,3.93814]
[1724882166408,2.3462,2539.5,2539.2,7.8763]
[1724882166627,2.3462,2539.5,2539.2,3.93814]
[1724882167028,0.23462,2539.4,2539.0,3.93853]
[1724882167231,0.23462,2539.4,2539.1,3.93836]
[1724882167411,2.2719,2539.6,2539.1,3.93836]
[1724882167607,2.2719,2539.6,2539.2,3.93822]
[1724882173530,6.20954,2539.6,2539.2,3.93822]
[1724882173730,1.408467,2539.5,2539.2,3.93822]
[1724882174070,1.408467,2539.5,2539.1,3.93839]
[1724882174765,5.346327,2539.5,2539.0,3.93848]
[1724882177448,5.346327,2539.5,2539.0,3.93847]
[1724882178668,5.0935467,2539.4,2538.9,3.93871]
[1724882178828,3.93796,2539.4,2538.9,3.93871]
[1724882179032,2.2969,2539.3,2538.9,3.93871]
[1724882179531,2.2969,2539.3,2538.8,3.93875]
[1724882179532,2.2969,2539.3,2539.0,3.93853]
[1724882179975,2.2969,2539.3,2538.8,7.87746]
[1724882180470,2.2969,2539.3,2538.9,3.93868]
[1724882180675,2.0339,2539.3,2538.9,3.93868]
[1724882183158,3.93796,2539.4,2539.0,3.93854]
[1724882183670,6.22816,2539.4,2539.0,3.93854]
[1724882183869,7.8755,2539.6,2539.0,3.93854]
[1724882184082,3.93785,2539.5,2539.0,3.93854]
[1724882184294,3.93826,2539.2,2538.7,3.93901]
[1724882184577,2.4143,2539.1,2538.7,3.93901]
[1724882185164,6.3527,2539.1,2538.4,3.93937]
[1724882185355,3.93884,2538.9,2538.5,0.98714716]
[1724882185550,3.93884,2538.9,2538.3,3.93963]
[1724882185883,3.93887,2538.8,2538.4,0.98720482]
[1724882186081,3.93884,2538.9,2538.4,4.57270863]
[1724882186272,6.34715,2539.0,2538.6,3.93916]
[1724882186640,2.4086,2539.0,2538.6,3.93916]
[1724882186842,2.2566,2539.2,2538.7,3.93894]
[1724882187085,6.19485,2539.2,2538.7,4.332856]
[1724882188078,6.19485,2539.2,2538.7,3.93894]
[1724882190179,6.19485,2539.2,2538.2,7.39626325]
[1724882190180,6.1958,2538.6,2538.0,6.36251]
[1724882190353,2.2566,2538.2,2537.8,5.33736525]
[1724882190553,3.94024,2538.0,2537.5,3.94088]
[1724882190752,7.88044,2538.0,2537.5,0.47630697]
[1724882190961,3.9402,2538.0,2537.5,0.47630697]
[1724882191182,7.8804,2538.0,2537.5,0.47630697]
[1724882191485,3.9402,2538.0,2537.5,4.41716697]
[1724882192267,3.94059,2537.7,2537.2,3.94134]
[1724882192585,3.94051,2537.8,2537.0,3.94151]
[1724882192790,3.94051,2537.8,2537.1,0.394151]
[1724882193096,3.94059,2537.7,2537.2,3.94132]
[1724882193291,3.94075,2537.6,2537.1,0.394151]
[1724882193588,3.94075,2537.6,2537.1,4.335651]
[1724882194388,3.94051,2537.8,2537.1,4.335651]
[1724882194578,3.94061,2537.7,2537.2,3.94133]
[1724882195568,3.94051,2537.8,2537.2,4.7689691]
[1724882195768,2.2566,2537.9,2537.4,3.94095]
[1724882196195,6.19688,2537.9,2537.4,3.94095]
[1724882196489,3.94016,2538.0,2537.5,3.94088]
[1724882200105,6.21399,2537.2,2536.5,3.94232]
[1724882200490,3.94152,2537.1,2536.5,3.94232]
[1724882201186,3.94181,2537.0,2536.3,3.94267]
[1724882201498,7.45,2537.5,2536.2,2.2604]
[1724882201499,3.94125,2537.3,2536.2,2.2604]
[1724882201865,3.94137,2537.2,2536.5,3.9423]
[1724882202200,3.9412,2537.3,2536.7,3.9421]
[1724882204010,0.98693,2537.4,2536.8,3.94195]
[1724882204304,4.92797,2537.4,2536.7,3.9421]
[1724882204665,1.631891,2537.3,2536.7,3.9421]
[1724882205703,1.631891,2537.3,2536.8,3.94193]
[1724882206121,1.631891,2537.3,2536.7,3.9421]
[1724882206411,1.631891,2537.3,2536.5,3.94239]
[1724882206615,6.33177,2537.2,2536.5,3.94239]
[1724882206915,3.94163,2537.1,2536.5,3.94239]
[1724882207467,7.1281361,2537.2,2536.6,3.94228]
[1724882207772,6.33177,2537.2,2536.6,3.94228]
[1724882207967,6.33177,2537.2,2536.2,2.2604]
[1724882208325,3.94246,2536.5,2535.9,3.94335]
[1724882208612,4.575736,2536.5,2535.9,3.94335]
[1724882208787,3.94246,2536.5,2535.9,3.94335]
[1724882209167,2.3328,2536.4,2535.9,3.94335]
[1724882209830,3.94293,2536.2,2535.5,7.88779]
[1724882209992,2.3328,2536.4,2535.5,7.88779]
[1724882209993,3.94287,2536.3,2535.6,3.94383]
[1724882210321,2.3328,2536.4,2535.7,3.94366]
[1724882210523,2.3328,2536.4,2535.8,3.9435]
[1724882211018,2.3328,2536.4,2535.9,3.94336]
[1724882211225,2.3328,2536.7,2535.5,3.94394]
[1724882211383,3.94319,2536.1,2535.4,3.94914]
[1724882211578,2.3328,2536.0,2535.4,3.94914]
[1724882212179,6.27602,2536.0,2535.4,0.005]
[1724882212414,0.627602,2535.9,2535.4,0.005]
[1724882212733,2.3022,2536.2,2535.5,3.94387]
[1724882212937,2.3022,2536.2,2535.4,0.005]
[1724882213230,2.3251,2536.5,2535.8,3.94339]
[1724882213466,2.951826,2536.5,2536.1,3.94295]
[1724882213580,3.0,2536.6,2536.0,3.9431]
[1724882213780,2.4635,2537.1,2536.7,3.94212]
[1724882214015,2.4635,2537.5,2536.9,3.94171]
[1724882214611,6.40448,2537.5,2536.9,3.94171]
[1724882215194,3.9411,2537.4,2536.7,3.94206]
[1724882215423,3.9411,2537.4,2536.8,3.94194]
[1724882215593,4.975637,2537.4,2536.7,3.94201]
[1724882216202,2.4635,2537.5,2536.7,3.94201]
[1724882216415,6.40452,2537.5,2536.9,3.94181]
[1724882216589,3.94105,2537.4,2536.7,3.94201]
[1724882217086,3.94105,2537.4,2536.7,7.88404]
[1724882217293,3.94105,2537.4,2536.7,8.672444]
[1724882217628,3.94105,2537.4,2536.7,4.730414]
[1724882218030,3.94105,2537.4,2536.7,7.88402]
[1724882218334,3.94105,2537.4,2536.7,3.94201]
[1724882218830,3.94105,2537.4,2536.7,7.88403]
[1724882219329,6.40441,2537.5,2536.8,3.94184]
[1724882219523,2.4635,2537.5,2536.9,4.335884]
[1724882219701,2.4635,2537.5,2537.0,3.94161]
[1724882220422,2.4635,2537.5,2537.0,3.94154]
[1724882221237,2.4635,2537.5,2537.0,7.88311]
[1724882221443,2.4635,2537.5,2536.9,0.394184]
[1724882221644,13.8743,2537.8,2537.2,3.94125]
[1724882221891,13.8743,2537.8,2537.3,3.94118]
[1724882222448,13.8743,2537.8,2537.2,7.8825]
[1724882222657,13.8743,2537.8,2537.2,3.94125]
[1724882222878,13.8743,2537.8,2537.2,7.88251]
[1724882223396,13.8743,2537.8,2537.2,4.73738362]
[1724882223545,9.9338,2537.8,2537.2,0.79613362]
[1724882223745,9.9338,2537.8,2537.4,3.94093]
[1724882224094,7.45,2537.8,2537.6,7.88127]
[1724882224251,7.45,2537.8,2537.7,3.94057]
[1724882224443,14.6535,2538.1,2537.7,3.94057]
[1724882224444,2.3135,2538.1,2537.7,3.94057]
[1724882224848,2.3135,2538.1,2537.8,3.94039]
[1724882225102,7.45,2538.3,2537.8,4.728442]
[1724882225251,7.45,2538.3,2538.0,3.94008]
[1724882225451,7.45,2538.3,2538.1,3.93993]
[1724882225689,7.45,2538.3,2538.2,3.93979]
[1724882227385,2.269,2538.7,2538.4,3.93945]
[1724882227688,2.269,2538.7,2538.5,3.93932]
[1724882227909,2.376,2539.0,2538.6,3.93917]
[1724882228066,2.376,2539.0,2538.6,3.93909]
[1724882228451,7.45,2539.1,2538.6,3.93909]
[1724882228653,7.45,2539.1,2538.7,3.93889]
[1724882228953,6.35093,2539.3,2538.8,3.93884]
[1724882229377,2.4128,2539.3,2538.8,3.93884]
[1724882229945,2.4128,2539.3,2538.8,7.87761]
[1724882230374,2.4128,2539.3,2538.8,3.93877]
[1724882230578,2.4128,2539.3,2538.8,7.87754]
[1724882231002,2.4128,2539.3,2538.8,7.87755]
[1724882231698,2.4128,2539.3,2539.0,3.93853]
[1724882232514,7.45,2539.4,2539.0,3.93853]
[1724882232666,7.45,2539.4,2539.1,3.93829]
[1724882232871,7.45,2539.4,2539.2,7.87629]
[1724882233168,16.2774,2539.8,2539.4,3.93792]
[1724882233169,19.79,2539.8,2539.4,3.93792]
[1724882233370,2.2526,2539.9,2539.5,3.93777]
[1724882234073,3.0,2539.9,2539.5,3.93777]
[1724882234409,7.45,2540.1,2539.5,3.93777]
[1724882234410,7.45,2540.1,2539.7,3.93745]
[1724882234614,7.45,2540.1,2539.8,3.9373]
[1724882235322,7.45,2540.1,2539.8,3.9372]
[1724882235609,2.2526,2540.3,2539.8,3.9372]
[1724882235779,11.38647,2540.4,2539.8,3.9372]
[1724882236184,7.45,2540.4,2539.8,3.9372]
[1724882236518,7.45,2540.4,2540.1,3.93674]
[1724882236670,19.79,2540.7,2540.3,3.93651]
[1724882236870,19.79,2540.7,2540.4,3.93637]
[1724882237070,7.87112,2541.0,2540.4,3.93628]
[1724882237071,11.38555,2541.0,2540.4,3.93628]
[1724882237314,11.38555,2541.0,2540.5,3.93614]
[1724882237315,12.172662,2541.0,2540.5,3.93614]
[1724882237484,8.237112,2541.0,2540.6,3.93606]
[1724882238196,7.45,2541.0,2540.6,3.93606]
[1724882238398,10.12687,2541.2,2540.6,3.93606]
[1724882238618,6.19162,2541.2,2540.6,3.93606]
[1724882238773,10.12688,2541.2,2540.6,3.93606]
[1724882238971,6.926988,2541.1,2540.6,3.93606]
[1724882240226,6.19162,2541.2,2540.6,3.93599]
[1724882240409,6.19162,2541.2,2540.6,7.87195]
[1724882240722,3.93522,2541.2,2540.6,3.93596]
[1724882241039,7.45,2541.3,2540.7,2.3896]
[1724882241201,7.45,2541.3,2540.8,3.93568]
[1724882241528,7.45,2541.3,2540.9,3.93549]
[1724882241727,19.79,2541.6,2540.9,3.93551]
[1724882241934,19.79,2541.6,2541.1,3.9352]
[1724882242102,23.72453,2541.6,2541.1,3.9352]
[1724882244033,19.79,2541.6,2541.2,3.93513]
[1724882244387,2.2747,2541.8,2541.2,3.93513]
[1724882244591,18.31801,2542.0,2541.4,3.93474]
[1724882244592,11.384,2542.0,2541.4,3.93474]
[1724882245341,7.45,2542.0,2541.5,3.93458]
[1724882245690,7.45,2542.0,2541.5,4.7608633]
[1724882246099,13.79239,2542.2,2541.6,3.93442]
[1724882246596,13.79239,2542.2,2541.7,3.93437]
[1724882246797,13.79239,2542.2,2541.6,7.86886]
[1724882247129,7.45,2542.2,2541.6,4.88259764]
[1724882247353,7.45,2542.2,2541.8,3.93419]
[1724882249516,11.38362,2542.2,2541.7,2.37297887]
[1724882249841,11.38362,2542.2,2541.7,0.63073789]
[1724882250134,11.38362,2542.2,2541.7,4.56509789]
[1724882250305,11.38362,2542.2,2541.7,4.6437768]
[1724882250506,3.93362,2542.2,2541.7,4.6437768]
[1724882250948,3.9335,2542.3,2541.8,3.93418]
[1724882251130,3.0,2542.2,2541.8,8.72612768]
[1724882251335,3.0,2542.3,2541.8,3.93413]
[1724882251505,3.0,2542.3,2541.8,7.86827]
[1724882251710,27.6567,2542.4,2541.9,2.2943]
[1724882251953,23.72333,2542.4,2542.0,1.016257]
[1724882252247,7.86671,2542.4,2542.0,1.016257]
[1724882252446,3.93349,2542.3,2542.0,1.016257]
[1724882252808,7.86671,2542.4,2542.0,1.016257]
[1724882253004,3.93333,2542.4,2542.0,1.016257]
[1724882253249,7.86673,2542.4,2542.0,1.016257]
[1724882253455,7.86672,2542.4,2542.0,1.016257]
[1724882253634,7.86676,2542.4,2542.0,1.016257]
[1724882253819,3.9335,2542.3,2541.7,0.0786749]
[1724882254011,3.9335,2542.3,2541.6,6.22872]
[1724882254616,3.93384,2542.1,2541.6,2.2943]
[1724882254909,3.93384,2542.1,2541.6,2.917205]
[1724882255351,3.93393,2542.0,2541.6,2.917205]
[1724882257148,3.93383,2542.1,2541.6,2.917205]
[1724882257640,3.93392,2542.0,2541.6,2.917205]
[1724882260105,3.93392,2542.0,2541.6,0.622905]
[1724882260309,3.93392,2542.0,2541.3,6.809303]
[1724882260549,3.93392,2542.0,2541.4,2.4809]
[1724882260761,3.93392,2542.0,2541.4,6.41573]
[1724882262366,3.93392,2542.0,2541.4,6.41566]
[1724882262567,3.93368,2542.2,2541.5,3.93459]
[1724882262568,7.86739,2542.2,2541.5,3.93459]
[1724882262777,3.93378,2542.1,2541.6,1.035025]
[1724882265342,3.93378,2542.1,2541.7,2.4626]
[1724882265733,3.93354,2542.3,2540.9,3.93558]
[1724882265734,2.3026,2542.0,2540.9,3.93558]
[1724882265961,3.93478,2541.5,2540.9,4.575398]
[1724882266271,3.93506,2541.3,2540.9,0.639818]
[1724882267233,2.4417,2541.6,2540.5,6.5809]
[1724882267438,3.93537,2541.1,2540.5,6.5809]
[1724882268141,6.37625,2541.6,2540.5,6.5809]
[1724882268142,3.93572,2540.9,2540.5,2.6448]
[1724882268335,3.93572,2540.9,2540.5,1.446032]
[1724882268645,3.93592,2540.7,2540.3,0.3943]
[1724882269161,3.93585,2540.8,2540.3,0.3943]
[1724882269954,3.93601,2540.7,2540.3,0.3943]
[1724882270274,3.93601,2540.7,2539.9,3.93707]
[1724882270475,3.93628,2540.5,2539.7,3.93737]
[1724882270779,3.9364,2540.4,2539.7,3.93737]
[1724882273836,3.93656,2540.3,2539.7,3.93737]
[1724882274036,3.93656,2540.3,2539.6,2.2987]
[1724882274037,3.93656,2540.3,2539.8,0.623607]
[1724882274278,3.93656,2540.3,2539.6,2.2987]
[1724882274989,3.93656,2540.3,2539.6,6.23628]
[1724882275281,3.93656,2540.3,2539.7,3.93746]
[1724882276193,3.93656,2540.3,2539.7,7.87492]
[1724882276481,3.93656,2540.3,2539.7,3.93746]
[1724882276783,3.93656,2540.3,2539.8,0.623616]
[1724882279607,6.29826,2540.3,2539.8,0.623616]
[1724882280107,3.93627,2540.5,2539.8,0.623616]
[1724882280263,3.93627,2540.5,2539.9,3.93705]
[1724882280902,3.93627,2540.5,2539.9,3.93579511]
[1724882281470,3.93627,2540.5,2539.9,7.87284511]
[1724882281670,3.93627,2540.5,2539.9,7.87287511]
[1724882282086,3.93627,2540.5,2540.0,3.93699]
[1724882284370,4.959668,2540.5,2540.0,3.93699]
[1724882285776,4.959668,2540.5,2539.9,3.93715]
[1724882286877,6.25908,2540.4,2539.8,3.93719]
[1724882287626,6.25908,2540.4,2539.9,3.93715]
[1724882288807,10.19555,2540.4,2539.8,3.93719]
[1724882289046,10.19554,2540.4,2539.8,3.93719]
[1724882289264,11.215094,2540.4,2539.8,3.93719]
[1724882289455,7.278624,2540.4,2539.8,7.87443]
[1724882289758,3.93656,2540.3,2539.8,3.93719]
[1724882290049,5.0580784,2540.3,2539.8,3.93719]
[1724882292562,5.0580784,2540.3,2539.6,3.93748]
[1724882292708,1.1215184,2540.3,2539.4,3.93782]
[1724882292911,3.93729,2539.9,2539.4,3.93782]
[1724882293127,3.93729,2539.9,2539.3,2.3837]
[1724882293128,3.93729,2539.9,2539.3,6.32179]
[1724882293459,3.93736,2539.8,2539.3,2.3837]
[1724882294018,3.93736,2539.8,2539.2,7.87637]
[1724882294019,3.93756,2539.7,2539.2,3.93816]
[1724882296022,3.93766,2539.6,2539.0,17.68728]
[1724882297166,3.93756,2539.7,2539.1,3.93835]
[1724882297367,3.93756,2539.7,2539.1,6.007068]
[1724882298034,7.87514,2539.7,2539.1,6.007068]
[1724882298977,3.93764,2539.6,2539.1,3.93835]
[1724882300386,6.414,2539.5,2539.0,3.93843]
[1724882300573,10.35187,2539.5,2539.0,3.93843]
[1724882300771,6.414,2539.5,2539.0,3.93843]
[1724882302286,3.93812,2539.3,2538.8,3.93881]
[1724882302493,7.449155,2539.5,2538.9,3.9387]
[1724882302784,3.93802,2539.4,2538.9,3.9387]
[1724882308567,3.93802,2539.4,2538.9,4.62487489]
[1724882308890,10.45,2539.9,2539.1,3.93833]
[1724882308891,3.93763,2539.6,2539.1,3.93833]
[1724882309201,11.38716,2539.9,2539.4,3.93792]
[1724882309350,3.93716,2539.9,2539.3,3.93799]
[1724882309698,3.93748,2539.7,2539.3,3.93799]
[1724882311068,3.93716,2539.9,2539.3,3.93799]
[1724882311868,3.93735,2539.8,2539.3,3.93799]
[1724882313294,3.93716,2539.9,2539.3,4.86627422]
[1724882313500,7.45,2540.2,2539.7,3.93746]
[1724882313694,7.45,2540.2,2539.8,2.2569]
[1724882313878,3.93718,2539.9,2539.4,2.2569]
[1724882314081,3.93718,2539.9,2539.4,6.19483]
[1724882314297,7.87442,2539.9,2539.4,2.2569]
[1724882314594,3.93718,2539.9,2539.4,2.2569]